fUSD/lending_fUSD_20260414
["ID","MTS","AMOUNT","RATE_DAILY","PERIOD"]
[420504255,1776178245114,-500.0,0.00015186,2]
[420504256,1776178245127,-500.0,0.00015186,2]
[420504257,1776178245137,-500.0,0.00015186,2]
[420504258,1776178245152,-500.0,0.00015186,2]
[420504259,1776178245168,-500.0,0.00015186,2]
[420504260,1776178245179,-155.0,0.00015186,2]
[420504261,1776178245195,-500.0,0.00015186,2]
[420504262,1776178245209,-500.0,0.00015186,2]
[420504263,1776178245219,-500.0,0.00015186,2]
[420504264,1776178245234,-500.0,0.00015186,2]
[420504265,1776178245246,-500.0,0.00015186,2]
[420504266,1776178245256,-508.78537537,0.00015186,2]
[420504267,1776178245266,-500.0,0.00015186,2]
[420504268,1776178245281,-500.0,0.00015186,2]
[420504269,1776178245296,-500.0,0.00015186,2]
[420504270,1776178245307,-500.0,0.00015186,2]
[420504271,1776178245322,-500.0,0.00015186,2]
[420504272,1776178245336,-500.0,0.00015186,2]
[420504273,1776178245346,-16939.78439257,0.00015187,2]
[420504274,1776178245364,-103963.2990216,0.00015187,2]
[420504275,1776178245376,-2812.377,0.00015187,2]
[420504280,1776178246267,-381.1352652,0.00013442,2]
[420504281,1776178246562,-75329.93362451,0.00013442,2]
[420504282,1776178246576,-602.1625,0.00013442,2]
[420504283,1776178246591,-272.32190768,0.00013442,2]
[420504284,1776178247087,-6947.86225,0.00013442,2]
[420504285,1776178247109,-12023.5,0.00013442,2]
[420504288,1776178261556,197.66,0.000165,30]
[420504293,1776178287145,200.0,0.0001379,30]
[420504294,1776178288315,174.99,0.0001379,30]
[420504305,1776178536254,627.42970567,0.00013428,30]
[420504306,1776178537512,627.42970567,0.00013441,30]
[420504307,1776178538788,627.42970567,0.00013442,30]
[420504308,1776178540087,627.42970567,0.000135,30]
[420504309,1776178541445,627.42970567,0.00015732,30]
[420504314,1776178838421,257.48232423,0.000165,30]
[420504343,1776179432073,-213.0,0.00010689,2]
[420504345,1776179432089,-402.73022702,0.00010689,2]
[420504348,1776179432114,-797.26977298,0.00010689,2]
[420504349,1776179432127,-300.0,0.00010689,2]
[420504352,1776179432138,-10842.23310287,0.0001069,2]
[420504354,1776179432160,-3546.28528161,0.0001069,2]
[420504356,1776179432174,-150.0,0.0001069,2]
[420504358,1776179432201,-500.0,0.00010694,2]
[420504360,1776179432212,-151.0,0.00010694,2]
[420504362,1776179432225,-104.12521231,0.00010694,2]
[420504364,1776179432251,-395.87478769,0.00010694,2]
[420504367,1776179432262,-413.0,0.00010694,2]
[420504368,1776179432273,-151.0,0.00010694,2]
[420504370,1776179432290,-34.81230204,0.00010698,2]
[420504373,1776179432312,-115.18769796,0.00010698,2]
[420504375,1776179432323,-153.62606032,0.00010699,2]
[420504377,1776179432334,-500.0,0.00010699,2]
[420504378,1776179432351,-500.0,0.00010699,2]
[420504379,1776179432362,-466.30166672,0.00010699,2]
[420504380,1776179432372,-500.0,0.00010699,2]
[420504381,1776179432395,-500.0,0.00010699,2]
[420504382,1776179432405,-316.9731,0.00010699,2]
[420504383,1776179432420,-22131.67349656,0.000107,2]
[420504384,1776179432440,-7452.12401581,0.000107,2]
[420504385,1776179432453,-299.23478,0.000107,2]
[420504386,1776179432481,-756.35463349,0.000107,2]
[420504387,1776179432497,-112292.1301388,0.000107,2]
[420504388,1776179432520,-1425.63383539,0.00011134,2]
[420504389,1776179432532,-225.4431,0.00011234,2]
[420504390,1776179432548,-158.4865,0.00011234,2]
[420504391,1776179432575,-1425.63383536,0.00011586,2]
[420504392,1776179432587,-11058.40182218,0.00011676,2]
[420504393,1776179432610,-600.0,0.00011758,2]
[420504394,1776179432622,-600.0,0.00011758,2]
[420504395,1776179432633,-600.0,0.00011758,2]
[420504396,1776179432655,-600.0,0.00011758,2]
[420504397,1776179432672,-1680.0,0.00011758,2]
[420504398,1776179432682,-504.715,0.00011759,2]
[420504399,1776179432710,-9061.53055266,0.000119,2]
[420504400,1776179432721,-500.0,0.000119,2]
[420504401,1776179432731,-500.0,0.000119,2]
[420504402,1776179432762,-500.0,0.000119,2]
[420504403,1776179432788,-468.55102849,0.000119,2]
[420504404,1776179432807,-1425.63383536,0.00012038,2]
[420504405,1776179432819,-151.0,0.00012089,2]
[420504406,1776179432859,-150.0,0.00012258,2]
[420504407,1776179432871,-200.0,0.00012421,2]
[420504408,1776179432913,-200.0,0.00012471,2]
[420504409,1776179432974,-1425.63383536,0.00012489,2]
[420504410,1776179433023,-250.0,0.00012582,2]
[420504411,1776179433067,-36779.24,0.00012726,2]
[420504412,1776179433112,-2423.83737901,0.0001288,2]
[420504413,1776179433134,-150.0,0.000129,2]
[420504414,1776179433157,-169.13,0.00012927,2]
[420504415,1776179433169,-2351.0,0.00012934,2]
[420504416,1776179433192,-1425.63383536,0.00012941,2]
[420504417,1776179433203,-500.0,0.00013322,2]
[420504418,1776179433215,-160.0,0.00013324,2]
[420504419,1776179433236,-1425.63383536,0.00013393,2]
[420504420,1776179433252,-506.0,0.000135,2]
[420504421,1776179433266,-1800.0,0.00013587,7]
[420504422,1776179433291,-255.1089958,0.00013587,2]
[420504423,1776179433305,-500.0,0.00013587,2]
[420504424,1776179433318,-205.26486201,0.00013587,2]
[420504425,1776179433331,-307.62822401,0.00013587,2]
[420504426,1776179433344,-500.0,0.00013587,2]
[420504427,1776179433354,-227.19653385,0.00013587,2]
[420504428,1776179433374,-63440.8689,0.00013588,2]
[420504429,1776179433389,-4181.75774888,0.00013627,2]
[420504430,1776179433399,-500.0,0.00013675,2]
[420504431,1776179433422,-500.0,0.00013675,2]
[420504433,1776179433435,-500.0,0.00013675,2]
[420504434,1776179433452,-458.63773172,0.00013675,2]
[420504436,1776179433463,-500.0,0.00013675,2]
[420504437,1776179433477,-500.0,0.00013675,2]
[420504439,1776179433497,-166.66,0.00013699,2]
[420504442,1776179433517,-158.78,0.00013699,2]
[420504443,1776179433530,-150.0,0.00013759,2]
[420504444,1776179433543,-150.0,0.00013759,2]
[420504446,1776179433559,-150.0,0.00013759,2]
[420504448,1776179433573,-150.0,0.00013759,2]
[420504450,1776179433586,-150.0,0.00013759,2]
[420504452,1776179433595,-150.0,0.00013759,2]
[420504455,1776179433616,-259.74988374,0.00013759,2]
[420504457,1776179433628,-150.0,0.00013759,2]
[420504459,1776179433657,-150.0,0.00013759,2]
[420504461,1776179433678,-150.0,0.00013759,2]
[420504463,1776179433694,-150.0,0.00013759,2]
[420504465,1776179433708,-150.0,0.00013759,2]
[420504467,1776179433726,-347.85227654,0.00013775,2]
[420504469,1776179433738,-244.0,0.0001379,3]
[420504471,1776179433748,-153.0,0.0001379,3]
[420504473,1776179433761,-150.0,0.00013835,2]
[420504475,1776179433771,-150.0,0.00013835,2]
[420504477,1776179433789,-166.66,0.00013836,2]
[420504479,1776179433799,-1425.63383536,0.00013845,2]
[420504481,1776179433809,-150.0,0.00013849,2]
[420504483,1776179433819,-150.0,0.00013861,2]
[420504485,1776179433838,-150.0,0.00013886,2]
[420504487,1776179433848,-150.0,0.00013898,2]
[420504489,1776179433858,-150.0,0.00013912,2]
[420504491,1776179433869,-150.0,0.00013912,2]
[420504493,1776179433884,-150.0,0.00013939,2]
[420504495,1776179433894,-16396.51,0.00013944,2]
[420504497,1776179433908,-150.0,0.00013963,2]
[420504498,1776179433920,-166.66,0.00013973,2]
[420504500,1776179433935,-150.0,0.00013977,2]
[420504502,1776179433950,-150.0,0.00013977,2]
[420504504,1776179433969,-500.0,0.00013982,2]
[420504505,1776179433987,-500.0,0.00013982,2]
[420504506,1776179434003,-150.0,0.00013988,2]
[420504507,1776179434013,-150.0,0.00013988,2]
[420504508,1776179434023,-22763.77,0.00013993,2]
[420504509,1776179434039,-2809.39655021,0.00014,2]
[420504510,1776179434051,-273.359035,0.00014008,2]
[420504511,1776179434062,-160.0,0.00014011,7]
[420504512,1776179434075,-530.151634,0.00014011,7]
[420504513,1776179434086,-900.303269,0.00014011,7]
[420504514,1776179434718,-188.566431,0.00014011,7]
[420504515,1776179434749,-212.060343,0.00014011,2]
[420504516,1776179434773,-150.0,0.00014014,2]
[420504517,1776179434789,-160.0,0.00014029,7]
[420504518,1776179434817,-195.682144,0.00014029,7]
[420504519,1776179434833,-231.364289,0.00014029,7]
[420504520,1776179434861,-150.0,0.00014029,2]
[420504521,1776179434871,-150.0,0.00014037,2]
[420504522,1776179434909,-150.0,0.00014065,2]
[420504523,1776179434921,-150.0,0.00014065,2]
[420504524,1776179434942,-150.0,0.00014065,2]
[420504525,1776179434953,-211.312667,0.00014093,7]
[420504526,1776179434963,-260.247473,0.00014093,2]
[420504527,1776179434982,-190.796,0.000141,2]
[420504528,1776179435004,-335.475257,0.00014108,2]
[420504529,1776179435013,-166.66,0.0001411,2]
[420504530,1776179435035,-150.0,0.00014119,2]
[420504531,1776179435046,-2809.39655013,0.00014133,2]
[420504532,1776179435066,-500.0,0.00014137,2]
[420504533,1776179435089,-150.0,0.00014141,2]
[420504534,1776179435102,-150.0,0.00014141,2]
[420504535,1776179435113,-150.0,0.00014141,2]
[420504536,1776179435134,-150.0,0.00014141,2]
[420504537,1776179435151,-150.0,0.00014167,2]
[420504538,1776179435163,-150.0,0.00014176,2]
[420504539,1776179435187,-150.0,0.00014196,2]
[420504540,1776179435197,-150.0,0.00014196,2]
[420504541,1776179435207,-150.0,0.00014209,2]
[420504542,1776179435230,-150.0,0.00014218,2]
[420504543,1776179435260,-150.0,0.00014218,2]
[420504544,1776179435280,-671.93182394,0.00014223,2]
[420504545,1776179435295,-500.0,0.00014223,2]
[420504546,1776179435305,-500.93469977,0.00014223,2]
[420504547,1776179435326,-3292.0,0.00014227,2]
[420504548,1776179435345,-160.0,0.00014238,7]
[420504549,1776179435362,-219.286728,0.00014238,7]
[420504550,1776179435379,-278.573457,0.00014238,7]
[420504551,1776179435416,-585.259583,0.00014238,7]
[420504552,1776179435427,-1010.519167,0.00014238,7]
[420504553,1776179435452,-166.66,0.00014247,2]
[420504554,1776179435468,-2809.39655013,0.00014267,2]
[420504555,1776179435494,-150.0,0.00014268,2]
[420504556,1776179435505,-150.0,0.00014268,2]
[420504557,1776179435521,-150.0,0.00014294,2]
[420504558,1776179435540,-150.0,0.00014294,2]
[420504559,1776179435556,-1425.63383536,0.00014296,2]
[420504560,1776179435566,-150.0,0.00014298,2]
[420504561,1776179435587,-150.0,0.00014315,2]
[420504562,1776179435605,-1000.0,0.00014328,2]
[420504563,1776179435616,-500.69201092,0.00014333,2]
[420504564,1776179435651,-150.0,0.0001437,2]
[420504565,1776179435663,-150.0,0.0001437,2]
[420504566,1776179435681,-150.0,0.0001437,2]
[420504567,1776179435698,-166.66,0.00014384,2]
[420504568,1776179435711,-150.0,0.00014388,2]
[420504569,1776179435725,-150.0,0.00014396,2]
[420504570,1776179435742,-2809.39655013,0.000144,2]
[420504571,1776179435755,-150.0,0.00014414,2]
[420504572,1776179435774,-150.0,0.00014414,2]
[420504573,1776179435787,-150.0,0.00014447,2]
[420504574,1776179435798,-150.0,0.00014447,2]
[420504575,1776179435813,-150.0,0.00014454,2]
[420504576,1776179435826,-150.0,0.00014472,2]
[420504577,1776179435845,-150.0,0.00014478,2]
[420504578,1776179435858,-578.20924308,0.0001448,2]
[420504579,1776179435868,-721.12765535,0.0001448,2]
[420504580,1776179435884,-1428.38747117,0.0001448,2]
[420504581,1776179435897,-200.0,0.0001448,2]
[420504582,1776179435910,-500.0,0.0001448,2]
[420504583,1776179435933,-151.0,0.0001448,2]
[420504584,1776179435943,-500.0,0.0001448,2]
[420504585,1776179435960,-200.0,0.0001448,2]
[420504586,1776179435977,-500.0,0.0001448,2]
[420504587,1776179435989,-500.0,0.0001448,2]
[420504588,1776179436004,-500.0,0.0001448,2]
[420504589,1776179436020,-250.0,0.0001448,2]
[420504590,1776179436029,-174.61919141,0.0001448,2]
[420504591,1776179436054,-153.75026935,0.0001448,2]
[420504592,1776179436065,-150.0,0.00014523,2]
[420504593,1776179436079,-150.0,0.00014523,2]
[420504594,1776179436097,-150.0,0.00014523,2]
[420504595,1776179436111,-150.0,0.00014523,2]
[420504596,1776179436125,-16486.1067905,0.00014529,2]
[420504597,1776179436141,-175.0002057,0.00014529,2]
[420504598,1776179436153,-51478.98401694,0.00014529,2]
[420504599,1776179437188,-5056.16644888,0.00014529,2]
[420504600,1776179437267,-6656.3528631,0.00014529,2]
[420504601,1776179437281,-388.019697,0.00014529,2]
[420504602,1776179437306,-15291.76619078,0.00014529,2]
[420504603,1776179437316,-13759.9818257,0.00014529,2]
[420504604,1776179437343,-154986.1367349,0.00014529,2]
[420504605,1776179437353,-210.68755,0.00014529,2]
[420504606,1776179437362,-210.68755,0.00014529,2]
[420504607,1776179437391,-210.68755,0.00014529,2]
[420504608,1776179437401,-210.68755,0.00014529,2]
[420504609,1776179437426,-151.2637641,0.00014529,2]
[420504610,1776179437442,-15267.4350414,0.00014529,2]
[420504611,1776179437456,-210.60663321,0.0001453,2]
[420504612,1776179437501,-2809.39655013,0.00014533,2]
[420504613,1776179437516,-500.0,0.00014535,2]
[420504614,1776179437526,-486.0,0.00014551,2]
[420504615,1776179437550,-150.0,0.00014568,2]
[420504616,1776179437565,-150.0,0.00014574,2]
[420504617,1776179437575,-150.0,0.00014593,2]
[420504618,1776179437594,-150.0,0.000146,2]
[420504619,1776179437612,-150.0,0.000146,2]
[420504620,1776179437635,-486.0,0.0001462,2]
[420504621,1776179437646,-4255.0,0.0001462,2]
[420504622,1776179437664,-150.0,0.00014632,2]
[420504623,1776179437686,-150.0,0.00014632,2]
[420504624,1776179437698,-150.0,0.00014651,2]
[420504625,1776179437735,-8832.21,0.00014655,2]
[420504626,1776179437746,-29167.52,0.00014655,2]
[420504627,1776179437779,-150.0,0.00014658,2]
[420504628,1776179437791,-2809.39655013,0.00014667,2]
[420504629,1776179437820,-150.0,0.00014676,2]
[420504630,1776179437835,-150.0,0.00014676,2]
[420504631,1776179437862,-150.0,0.00014676,2]
[420504632,1776179437874,-4255.0,0.00014679,2]
[420504633,1776179437906,-4255.0,0.00014686,2]
[420504635,1776179437918,-192.14681121,0.00014694,4]
[420504636,1776179437947,-722.934047,0.00014711,7]
[420504638,1776179437967,-486.0,0.00014724,2]
[420504640,1776179437995,-266.839288,0.0001473,7]
[420504641,1776179438013,-150.0,0.00014732,2]
[420504642,1776179438048,-150.0,0.00014748,2]
[420504643,1776179438072,-1425.63383536,0.00014748,2]
[420504644,1776179438083,-150.0,0.00014753,2]
[420504645,1776179438123,-150.0,0.00014753,2]
[420504647,1776179438134,-150.0,0.00014778,2]
[420504648,1776179438155,-150.0,0.00014778,2]
[420504649,1776179438168,-282.16,0.00014784,2]
[420504650,1776179438178,-2809.39655013,0.000148,2]
[420504651,1776179438207,-150.0,0.00014829,2]
[420504652,1776179438219,-150.0,0.00014829,2]
[420504653,1776179438237,-150.0,0.00014838,2]
[420504654,1776179438257,-1570.36757188,0.0001485,2]
[420504655,1776179438270,-152.0,0.0001485,2]
[420504656,1776179438291,-150.0,0.00014851,2]
[420504657,1776179438302,-150.0,0.00014851,2]
[420504658,1776179438315,-150.0,0.00014871,2]
[420504659,1776179438337,-150.0,0.0001488,2]
[420504660,1776179438353,-506.0,0.00014885,3]
[420504661,1776179438363,-150.0,0.00014905,2]
[420504662,1776179438378,-150.0,0.00014905,2]
[420504663,1776179438392,-150.0,0.00014905,2]
[420504664,1776179438403,-150.0,0.00014905,2]
[420504665,1776179438413,-150.0,0.00014928,2]
[420504666,1776179438435,-2809.39655013,0.00014933,2]
[420504667,1776179438446,-1000.0,0.00014942,2]
[420504668,1776179438458,-299.027357,0.0001495,7]
[420504669,1776179438481,-798.08125,0.0001495,7]
[420504670,1776179438492,-486.0,0.00014954,2]
[420504671,1776179438504,-486.0,0.00014973,2]
[420504672,1776179438521,-486.0,0.00014974,2]
[420504673,1776179438540,-153.83,0.00014979,2]
[420504674,1776179438551,-150.0,0.00014982,2]
[420504675,1776179438561,-150.0,0.00014982,2]
[420504676,1776179438575,-150.0,0.00014982,2]
[420504677,1776179438585,-486.0,0.00014987,2]
[420504678,1776179438603,-486.0,0.00014992,2]
[420504679,1776179438614,-1071.25210547,0.00014994,2]
[420504680,1776179438624,-155.8965354,0.00015,2]
[420504681,1776179438645,-627.38844667,0.00015,2]
[420504682,1776179438655,-150.0,0.0001501,2]
[420504683,1776179438666,-150.0,0.00015018,2]
[420504684,1776179438698,-200.0,0.00015028,2]
[420504686,1776179438710,-1481.23780761,0.00015028,2]
[420504709,1776179439095,-181.08010149,0.00015028,2]
[420504711,1776179439105,-150.0,0.00015033,2]
[420504713,1776179439115,-527.0,0.00015037,2]
[420504715,1776179439129,-150.0,0.00015058,2]
[420504717,1776179439139,-150.0,0.00015058,2]
[420504719,1776179439150,-500.0,0.0001506,2]
[420504721,1776179439162,-2809.39655013,0.00015067,2]
[420504723,1776179439176,-200.0,0.00015068,2]
[420504725,1776179439189,-150.0,0.00015069,2]
[420504727,1776179439199,-150.0,0.00015069,2]
[420504729,1776179439210,-165.6445,0.0001507,2]
[420504732,1776179439225,-527.0,0.00015079,2]
[420504734,1776179439236,-169.13,0.00015082,2]
[420504736,1776179439254,-2058.808,0.00015082,2]
[420504738,1776179439265,-181.271,0.00015082,2]
[420504740,1776179439275,-150.0,0.00015084,2]
[420504741,1776179439291,-655.5000711,0.00015087,2]
[420504742,1776179439302,-1000.0,0.00015087,2]
[420504743,1776179439312,-150.0,0.00015108,2]
[420504744,1776179439331,-500.0,0.00015121,2]
[420504745,1776179439343,-500.0,0.00015121,2]
[420504746,1776179439357,-500.0,0.00015121,2]
[420504747,1776179439387,-500.0,0.00015121,2]
[420504748,1776179439400,-250.0,0.00015121,2]
[420504749,1776179439423,-200.0,0.00015122,2]
[420504750,1776179439433,-203.617,0.00015122,2]
[420504753,1776179439461,-150.44,0.00015122,2]
[420504755,1776179439472,-163.699,0.00015122,2]
[420504757,1776179439495,-250.0,0.00015122,2]
[420504759,1776179439508,-156.347,0.00015122,2]
[420504761,1776179439531,-193.775,0.00015122,2]
[420504763,1776179439545,-166.306,0.00015122,2]
[420504765,1776179439558,-215.171,0.00015122,2]
[420504767,1776179439578,-250.0,0.00015122,2]
[420504769,1776179439592,-182.0,0.00015122,2]
[420504771,1776179439607,-241.039,0.00015122,2]
[420504773,1776179439620,-622.0,0.00015122,2]
[420504775,1776179439630,-1459.96,0.00015122,2]
[420504776,1776179439643,-1047.0,0.00015122,2]
[420504779,1776179439655,-1264.0,0.00015122,2]
[420504781,1776179439667,-1218.0,0.00015122,2]
[420504782,1776179439678,-926.0,0.00015122,2]
[420504785,1776179439690,-416.0,0.00015122,2]
[420504787,1776179439699,-1331.0,0.00015122,2]
[420504789,1776179439712,-150.0,0.00015135,2]
[420504791,1776179439734,-150.0,0.00015135,2]
[420504793,1776179439744,-655.50007108,0.00015144,2]
[420504795,1776179439756,-150.0,0.00015149,2]
[420504797,1776179439768,-373.84344,0.0001515,2]
[420504799,1776179439779,-373.84344,0.0001515,2]
[420504801,1776179439789,-500.0,0.00015151,2]
[420504803,1776179439801,-359.67,0.00015151,2]
[420504805,1776179439812,-152.0,0.00015158,7]
[420504806,1776179439826,-152.0,0.00015158,7]
[420504808,1776179439835,-2945.0,0.00015159,2]
[420504811,1776179439845,-373.84344,0.0001516,2]
[420504813,1776179439866,-150.0,0.0001516,2]
[420504815,1776179439876,-527.0,0.00015178,2]
[420504817,1776179439886,-454.2,0.00015182,2]
[420504819,1776179439898,-477.72,0.00015182,2]
[420504820,1776179439922,-500.0,0.00015184,2]
[420504823,1776179439936,-500.0,0.00015184,2]
[420504824,1776179439950,-500.0,0.00015184,2]
[420504827,1776179439970,-500.0,0.00015184,2]
[420504829,1776179439982,-500.0,0.00015184,2]
[420504831,1776179439999,-500.0,0.00015184,2]
[420504833,1776179440018,-500.0,0.00015184,2]
[420504834,1776179440042,-500.0,0.00015184,2]
[420504836,1776179440052,-500.0,0.00015184,2]
[420504838,1776179440066,-500.0,0.00015184,2]
[420504840,1776179440085,-500.0,0.00015184,2]
[420504842,1776179440096,-613.68,0.00015184,2]
[420504844,1776179440106,-151.0,0.00015184,2]
[420504846,1776179440131,-18409.3468749,0.00015185,2]
[420504848,1776179440141,-150.0,0.00015186,2]
[420504851,1776179440163,-500.0,0.00015186,2]
[420504853,1776179440189,-500.0,0.00015186,2]
[420504855,1776179440199,-500.0,0.00015186,2]
[420504857,1776179440211,-500.0,0.00015186,2]
[420504859,1776179440230,-273.25457151,0.00015186,2]
[420504861,1776179440241,-500.0,0.00015186,2]
[420504863,1776179440251,-500.0,0.00015186,2]
[420504865,1776179440263,-500.0,0.00015186,2]
[420504867,1776179440282,-500.0,0.00015186,2]
[420504868,1776179440292,-500.0,0.00015186,2]
[420504871,1776179440303,-500.0,0.00015186,2]
[420504873,1776179440322,-500.0,0.00015186,2]
[420504875,1776179440333,-25485.5702664,0.00015187,2]
[420504877,1776179440342,-22022.4288888,0.00015187,2]
[420504879,1776179440361,-527.0,0.00015187,2]
[420504881,1776179440379,-151.0,0.00015187,2]
[420504882,1776179440389,-177.494809,0.00015187,2]
[420504885,1776179440404,-270.74155764,0.00015187,2]
[420504887,1776179440420,-151.0,0.00015187,2]
[420504889,1776179440439,-151.0,0.00015187,2]
[420504890,1776179440451,-151.0,0.00015187,2]
[420504892,1776179440462,-284.563213,0.00015187,2]
[420504894,1776179440481,-210.68755,0.00015187,2]
[420504897,1776179440494,-210.68755,0.00015187,2]
[420504898,1776179440507,-210.68755,0.00015187,2]
[420504900,1776179440519,-210.68755,0.00015187,2]
[420504902,1776179440539,-151.0,0.00015187,2]
[420504904,1776179440550,-500.0,0.00015187,2]
[420504907,1776179440570,-493.0,0.0001519,2]
[420504908,1776179440579,-5287.0,0.00015195,2]
[420504910,1776179440590,-527.0,0.00015195,2]
[420504912,1776179440605,-150.0,0.00015197,2]
[420504914,1776179440632,-150.0,0.00015198,2]
[420504916,1776179440644,-709.54675342,0.00015199,2]
[420504918,1776179440673,-500.0,0.00015199,2]
[420504920,1776179440682,-1422.0,0.000152,5]
[420504923,1776179440698,-1316.9211,0.000152,2]
[420504924,1776179440716,-202.52254525,0.000152,2]
[420504927,1776179440729,-5000.0,0.000152,2]
[420504928,1776179440757,-2809.39655013,0.000152,2]
[420504931,1776179440767,-1425.63383536,0.000152,2]
[420504933,1776179440780,-655.50007108,0.000152,2]
[420504936,1776179440810,-202.9743618,0.000152,2]
[420504938,1776179440824,-981.74432903,0.000152,2]
[420504939,1776179440860,-1500.0,0.000152,2]
[420504941,1776179440896,-150.0,0.00015211,2]
[420504943,1776179440915,-150.0,0.00015211,2]
[420504945,1776179440937,-221.99121928,0.00015217,2]
[420504948,1776179440978,-131.64309747,0.00015217,2]
[420504950,1776179440990,-527.0,0.00015238,2]
[420504952,1776179441010,-1132.77,0.00015238,2]
[420504954,1776179441034,-655.0,0.00015257,2]
[420504956,1776179441067,-499.0,0.00015268,2]
[420504958,1776179441077,-500.0,0.00015273,2]
[420504960,1776179441104,-502.22656086,0.00015273,2]
[420504961,1776179441135,-500.0,0.00015273,2]
[420504963,1776179441151,-500.0,0.00015273,2]
[420504965,1776179441182,-308.84034167,0.00015273,2]
[420504968,1776179441201,-191.32628898,0.00015273,2]
[420504970,1776179441251,-500.0,0.00015273,2]
[420504972,1776179441309,-500.0,0.00015273,2]
[420504974,1776179441322,-506.04019465,0.00015273,2]
[420504976,1776179441352,-391.04980222,0.00015273,2]
[420504984,1776179441471,-108.95019778,0.00015273,2]
[420504986,1776179441484,-500.0,0.00015273,2]
[420504988,1776179441493,-500.0,0.00015273,2]
[420504991,1776179441512,-500.0,0.00015273,2]
[420504994,1776179441522,-500.0,0.00015273,2]
[420504998,1776179441532,-500.0,0.00015273,2]
[420504999,1776179441541,-500.54897623,0.00015273,2]
[420505001,1776179441556,-500.0,0.00015273,2]
[420505003,1776179441566,-500.0,0.00015273,2]
[420505005,1776179441583,-491.24521122,0.00015273,2]
[420505007,1776179441597,-8.75478878,0.00015273,2]
[420505009,1776179441606,-500.0,0.00015273,2]
[420505011,1776179441626,-501.41969664,0.00015273,2]
[420505013,1776179441636,-500.0,0.00015273,2]
[420505015,1776179441651,-500.0,0.00015273,2]
[420505017,1776179441661,-23.14650884,0.00015273,2]
[420505019,1776179441673,-418.88073971,0.00015273,2]
[420505021,1776179441682,-225.82978771,0.00015273,2]
[420505024,1776179441701,-274.17021229,0.00015273,2]
[420505026,1776179441711,-1151.0,0.00015279,5]
[420505028,1776179441720,-1600.0,0.00015285,2]
[420505030,1776179441739,-179.4817088,0.00015288,2]
[420505032,1776179441751,-225.89548749,0.00015288,2]
[420505034,1776179441759,-194.22188173,0.00015288,2]
[420505036,1776179441769,-164.97415804,0.00015288,2]
[420505038,1776179441787,-176.6837889,0.00015288,2]
[420505040,1776179441799,-223.27324399,0.00015288,2]
[420505042,1776179441809,-298.96442628,0.00015288,2]
[420505043,1776179441828,-158.13442073,0.00015288,2]
[420505046,1776179441842,-173.69027535,0.00015288,2]
[420505048,1776179441862,-210.69904595,0.00015288,2]
[420505050,1776179441873,-285.31876457,0.00015288,2]
[420505052,1776179441885,-509.9999989,0.0001529,2]
[420505054,1776179441897,-179.90353309,0.0001529,2]
[420505056,1776179441912,-487.0,0.00015293,2]
[420505058,1776179441923,-655.0,0.00015296,2]
[420505060,1776179441936,-1000.0,0.00015297,2]
[420505062,1776179441952,-150.0,0.00015299,2]
[420505063,1776179441962,-1054.68099591,0.00015299,5]
[420505066,1776179441980,-1067.54895647,0.00015299,5]